Cogmind - Beta 13 @@@ ROGUE MODE // 2024.04.05 @ 13:49:50 Player: Big Tortoise Result: Core destroyed Performance ------------- Evolutions (0) 0 Regions Visited (2) 400 Robots Destroyed (13) 65 Value Destroyed (288) 288 Prototype IDs (1) 20 Alien Tech Used (0) 0 Bonus (0) 0 TOTAL SCORE: 773 Bonus ------- None Cogmind --------- Core Integrity 0/250 Matter 244/300 Energy 99/100 System Corruption 3% Temperature Cool (0) Movement Core (50) Location -10/Mines Parts ------- > --- POWER (1) -------- (None) > --- PROPULSION (2) --- (None) > --- UTILITY (2) ------ Experimental Sensor Array Seismic Detector > --- WEAPON (2) ------- (None) > --- INVENTORY (5) ---- Light Ion Engine Light Treads Improved Terrain Scanner Small Laser Peak State ------------ > --- POWER ------------ (None) > --- PROPULSION ------- (None) > --- UTILITY ---------- Experimental Sensor Array Seismic Detector > --- WEAPON ----------- (None) > --- INVENTORY -------- Light Ion Engine Light Treads Improved Terrain Scanner Small Laser [Rating: 10] Favorites ----------- Power Ion Engine Engine Ion Engine Propulsion Light Treads Treads Light Treads Utility Signal Interpreter Device Improved Terrain Scanner Storage Medium Storage Unit Processor Signal Interpreter Weapon Light Assault Rifle Energy Gun EM Shotgun Energy Cannon Beam Cannon Ballistic Gun Light Assault Rifle Build | -11 -10 -10 ------- Run | Yrd Mat Min Slots Evolved . | . . . Power . | . . . Propulsion . | . . . Utility . | . . . Weapon . | . . . Parts Attached 15 | 7 5 3 Power 2 | 1 1 . Engine 2 | 1 1 . Core . | . . . Reactor . | . . . Propulsion 3 | 2 1 . Treads 3 | 2 1 . Leg . | . . . Wheel . | . . . Hover . | . . . Flight . | . . . Utility 6 | 2 2 2 Device 3 | 1 . 2 Storage 2 | 1 1 . Processor 1 | . 1 . Hackware . | . . . Protection . | . . . Artifact . | . . . Weapon 4 | 2 1 1 Energy Gun 1 | . . 1 Energy Cannon 1 | . 1 . Ballistic Gun 2 | 2 . . Ballistic Cannon . | . . . Launcher . | . . . Special Weapon . | . . . Impact Weapon . | . . . Slashing Weapon . | . . . Piercing Weapon . | . . . Special Melee Weapon . | . . . Unidentified Prototypes 1 | . . 1 Parts Lost 4 | . 2 2 Power 2 | . 1 1 Propulsion . | . . . Utility . | . . . Weapon 2 | . 1 1 Highest Loss Streak 1 | . 1 1 To Critical Strikes . | . . . Average Slot Usage (%) 87 | . 96 63 Engine 10 | . 11 8 Treads 24 | . 27 16 Device 3 | . 2 5 Storage 12 | . 14 8 Processor 10 | . 11 8 Energy Cannon 8 | . 8 8 Ballistic Gun 15 | . 19 5 Naked Turns 35 | . . 35 Heaviest Build 21 | 14 19 21 Greatest Support 40 | 40 40 40 Greatest Overweight (x) . | . . . Average Overweight (x) . | . . . Largest Inventory Capacity 10 | 8 10 10 Average Capacity 8 | 7 9 7 Most Carried 10 | 5 10 10 Average Carried 6 | 1 7 7 Final Capacity 10 | 8 10 5 Final Carried 10 | 5 10 4 Class Distribution -------------------- 100% | Mutant Dominant Class ---------------- Mutant | -10/Materials Mutant | -10/Mines Resources | -11 -10 -10 ----------- Run | Yrd Mat Min Matter Collected 478 | 264 214 . Remotely . | . . . Salvage Created 609 | 125 427 57 Parts 34 | 7 27 . Haulers Intercepted 1 | . 1 . Recyclers Shooed 3 | 1 2 . Parts Field Recycled . | . . . Retrieved Matter . | . . . Parts Self-Destructed . | . . . Prevented . | . . . Kills | -11 -10 -10 ------- Run | Yrd Mat Min Combat Hostiles Destroyed 9 | . 6 3 Guns 7 | . 5 2 Cannons 2 | . 1 1 Classes Destroyed 7 | 2 4 1 Worker 1 | . 1 . Tunneler 2 | 2 . . Hauler 1 | . 1 . Recycler 2 | 1 1 . Watcher 1 | . 1 . Grunt 6 | . 6 . Assembled 3 | . . 3 Best Kill Streak 4 | 3 4 1 Combat Bots Only 4 | . 4 1 Max Kills in Single Turn 2 | 1 2 1 Gunslinging . | . . . Exploded . | . . . Melee . | . . . Uniques/NPCs Destroyed . | . . . Combat | -11 -10 -10 -------- Run | Yrd Mat Min Hostile Shots Fired 95 | . 42 53 Missed 20 | . 8 12 Damage Taken 1025 | . 448 577 Core 252 | . 130 122 Absorbed by Shields . | . . . Regen/Repaired (Parts) 78 | . 78 . Core Remaining (%) 100 | 100 . . Volleys Fired 60 | 8 38 14 Largest 2 | 2 2 2 Hottest 105 | 40 80 105 Shots Fired 120 | 16 76 28 Gun 104 | 16 74 14 Cannon 16 | . 2 14 Launcher . | . . . Special . | . . . Kinetic 97 | 16 74 7 Thermal 16 | . 2 14 Explosive . | . . . Electromagnetic 7 | . . 7 Robot Hit Streak 10 | 10 9 9 Robot Miss Streak 10 | 1 10 5 Penetration Max . | . . . Secondary Targets 2 | . 2 . Max Gunslinging Chain 1 | . 1 . Shots Hit Robots 66 | 12 36 18 Core Hits 34 | 5 20 9 Critical Kills . | . . . Critical Parts Destroyed . | . . . Critical Strikes . | . . . Melee Attacks . | . . . Impact . | . . . Slashing . | . . . Piercing . | . . . Sneak Attacks . | . . . Combat Hostiles . | . . . Follow-up Attacks . | . . . Damage Inflicted 791 | 127 405 259 Guns 588 | 127 370 91 Cannons 192 | . 35 157 Explosions . | . . . Melee . | . . . Ramming 11 | . . 11 Kinetic 540 | 127 370 43 Thermal 192 | . 35 157 Explosive . | . . . Electromagnetic 48 | . . 48 Impact . | . . . Slashing . | . . . Piercing . | . . . Highest Corruption 3 | . 1 3 Average Corruption 1 | . 1 1 Corruption Purged . | . . . Corruption Blocked . | . . . Effects 8 | . 3 5 Message Errors 2 | . . 2 Matter Fused 3 | . 1 2 Energy Discharges 2 | . 2 . Data Loss (major) 1 | . . 1 Overload Shots . | . . . Overflow Damage . | . . . Projectiles . | . . . Explosions . | . . . Melee . | . . . Knockbacks . | . . . Impact . | . . . Kinetic . | . . . Secondary . | . . . Self-Inflicted Damage 5 | . . 5 Shots . | . . . Rammed 3 | . . 3 Targets Rammed 3 | . . 3 Kicked . | . . . Crushed . | . . . Highest Temperature 300 | . 44 300 Average Temperature 128 | . 9 180 Received Heat Transfer 432 | . 252 180 Effects 2 | . . 2 Interference 2 | . . 2 Siege Activations . | . . . Robots Corrupted . | . . . Combat Hostiles . | . . . Parts Fried . | . . . Impact Corruptions . | . . . Robots Melted . | . . . Combat Hostiles . | . . . Parts Melted . | . . . Heat Transferred 407 | . 74 333 Parts Sabotaged . | . . . Parts Stolen . | . . . Parts Stripped . | . . . Power Chain Reactions . | . . . Alert | -11 -10 -10 ------- Run | Yrd Mat Min Peak Influence 163 | 15 163 5 Initial 9 | . 9 5 Average 30 | 8 45 2 Maximum Alert Level . | . . . Low Security (%) 100 | 100 100 100 Level 1 . | . . . Level 2 . | . . . Level 3 . | . . . Level 4 . | . . . Level 5 . | . . . High Security . | . . . Max Security . | . . . Squads Dispatched 1 | . 1 . Investigation 1 | . 1 . Extermination . | . . . Reinforcement . | . . . Assault . | . . . Garrison . | . . . Intercept . | . . . Searches Triggered . | . . . Construction Impeded . | . . . Haulers Reinforced . | . . . Active Scanning Responses . | . . . Cargo Convoy Interrupts . | . . . Stealth | -11 -10 -10 --------- Run | Yrd Mat Min Distress Signals . | . . . Communications Jammed . | . . . Distress Signals . | . . . Times Spotted 27 | . 11 16 Peak Tracking Total 8 | . 4 8 Tactical Retreats 5 | . . 5 Traps | -11 -10 -10 ------- Run | Yrd Mat Min Traps Triggered 2 | . 2 . Indirectly . | . . . Trap Hack Attempts . | . . . Triggered . | . . . Disarmed . | . . . Reprogrammed . | . . . Reused . | . . . Traps Extracted . | . . . Installed . | . . . Triggered . | . . . Machines | -11 -10 -10 ---------- Run | Yrd Mat Min Machines Disabled . | . . . Max in Single Turn . | . . . Machines Repaired . | . . . Machines Dismantled . | . . . Machines Sabotaged . | . . . Overloaded Fab Kills . | . . . Hacking | -11 -10 -10 --------- Run | Yrd Mat Min Machines Accessed 4 | . 4 . Terminals 2 | . 2 . Fabricators . | . . . Repair Stations 1 | . 1 . Recycling Units 1 | . 1 . Scanalyzers . | . . . Garrison Access . | . . . Total Hacks 9 | . 9 . Successful 6 | . 6 . Failed 3 | . 3 . Catastrophic . | . . . Database Lockouts . | . . . Manual 4 | . 4 . Terminals 4 | . 4 . Fabricators . | . . . Repair Stations 2 | . 2 . Recycling Units 3 | . 3 . Scanalyzers . | . . . Garrison Access . | . . . Terminal Hacks 1 | . 1 . Branch Access Points 1 | . 1 . Fabricator Hacks . | . . . Repair Station Hacks 2 | . 2 . Scan Component 1 | . 1 . Repair 1 | . 1 . Recycling Unit Hacks 2 | . 2 . Report Inventory 1 | . 1 . Retrieve Components 1 | . 1 . Scanalyzer . | . . . Garrison Access Hacks . | . . . Unauthorized Hacks 1 | . 1 . Terminals 1 | . 1 . Botnet 1 | . 1 . Fabricators . | . . . Repair Stations . | . . . Recycling Units . | . . . Scanalyzers . | . . . Garrison Access . | . . . Data Cores Recovered . | . . . Used . | . . . Hacking Detections 2 | . 2 . Full Trace Events . | . . . Feedback Events . | . . . Feedback Blocked . | . . . Robot Schematics Acquired . | . . . Robots Built . | . . . Authchips . | . . . Time . | . . . Total Robot Build Rating . | . . . Part Schematics Acquired . | . . . Parts Built . | . . . Authchips . | . . . Time . | . . . Total Part Build Rating . | . . . Parts Repaired 1 | . 1 . Time 26 | . 26 . Parts Recycled . | . . . Recycled Matter . | . . . Retrieved Matter . | . . . Retrieved Components 10 | . 10 . Parts Scanalyzed . | . . . Part Schematics Acquired . | . . . Parts Damaged . | . . . Bothacking | -11 -10 -10 ------------ Run | Yrd Mat Min Used RIF Installer . | . . . Robots Hacked . | . . . Non-combat . | . . . Combat . | . . . Robot Hacks Applied . | . . . Relay Couplers Released . | . . . Fabnet Peak Effective % . | . . . Robots Rewired . | . . . Allies Hacked . | . . . Hacks Repelled . | . . . Allies | -11 -10 -10 -------- Run | Yrd Mat Min Total Allies . | . . . Largest Group . | . . . Highest-Rated Group . | . . . Highest-Rated Ally . | . . . Total Orders . | . . . Ally Attacks . | . . . Total Damage . | . . . Kills . | . . . Allies Corrupted . | . . . Allies Melted . | . . . Intel | -11 -10 -10 ------- Run | Yrd Mat Min Robot Analysis Total . | . . . Derelict Logs Recovered 1 | . . 1 Drone Launches . | . . . Drone Recoveries . | . . . Exploration | -11 -10 -10 ------------- Run | Yrd Mat Min Turns Passed 1085 | 138 688 259 Spaces Moved 617 | 59 324 234 Core 171 | 3 . 168 Treads 446 | 56 324 66 Legs . | . . . Wheels . | . . . Hover . | . . . Flight . | . . . Fastest Speed 50 | 50 160 50 Average Speed 129 | 154 160 81 Slowest Speed 160 | 160 160 160 Overloaded Moves . | . . . Propulsion Burnouts . | . . . Robots Hopped . | . . . Cave-ins Triggered . | . . . Exploration Rate (%) 29 | 6 51 30 Regions Visited 2 Branch Regions 1 Pre-discovered Areas 1 | . . 1 Known Exits Taken 1 | . 1 . Unknown Exits Taken 1 | 1 . . Scrap Searched . | . . . Spaces Dug . | . . . Terrain Destroyed . | . . . Melee . | . . . Projectile . | . . . AOE . | . . . Terrain Rammed . | . . . Walls Destroyed . | . . . Machines Disabled . | . . . Actions | -11 -10 -10 --------- Run | Yrd Mat Min Total 789 | 88 425 276 Wait 82 | 10 49 23 Move 615 | 58 323 234 Hop . | . . . Pick Up 12 | 5 7 . Fast Attach 11 | 7 3 1 Attach 3 | . 1 2 Detach . | . . . Swap 1 | . 1 . Drop 3 | . 3 . Fire 60 | 8 38 14 Melee . | . . . Ram 2 | . . 2 Kick . | . . . Crush . | . . . Escape Stasis . | . . . Rewire . | . . . Trap . | . . . Miscellaneous . | . . . Route ------- -11/Scrapyard -10/Materials (discovered 3 exits: *Mat / *Min x2) -10/Mines History --------- Turn | Location | Event 25 | -11/Scrapyard | Discovered new exit (range 16) 139 | -11/Scrapyard | Entered Materials 310 | -10/Materials | Build established: Mutant 426 | -10/Materials | Core integrity fell below 50% 475 | -10/Materials | Discovered new exit (range 7) 484 | -10/Materials | Identified exit to Materials 659 | -10/Materials | Identified exit to Mines 765 | -10/Materials | Repaired Lgt. Treads 827 | -10/Materials | Entered Mines 900 | -10/Mines | Assembled infested the area 976 | -10/Mines | Core integrity fell below 20% 978 | -10/Mines | Released all parts (6) 1012 | -10/Mines | Found a damaged Exp. Sensor Array with a note attached 1013 | -10/Mines | Found Prototype Device 1013 | -10/Mines | Identified Exp. Sensor Array 1086 | -10/Mines | Core destroyed Last Messages --------------- 00982_ System corrupted: Matter fused (-10). 00992_ K-01 Serf cleans the Pulverizer. 01002_ Slammed into K-01 Serf. 01012_ A damaged part is partially visible under some rubble. There's a note attached: "Everyone keeps telling us we should avoid high-traffic areas because that's where patrols are more likely to show up, but that doesn't do us much good if we can't spot those areas until they're on top of us... With this we can! Deliver it to Megawrench for repairs then we'll never be afraid of an ambush while sneaking around Materials again, ha." 01013_ Acquired Prototype Device. 01013_ Identified Exp. Sensor Array. 01045_ System corrupted: Matter fused (-10). 01053_ T-07 Excavator destroyed. 01084_ System corrupted: Substantial component data lost. 01086_ Slammed into K-01 Serf. Map ----- +----------------------------------------------------+ | ??????????????????????????????????????????????? | | ??????????????????????????????????????????????? | | ??????????????????????????????????????????????? | | ??????????????????????????????????????????????? | | ??????????????????????????????????????????????? | | ??????????????????????????????????????????????? | | ??????????????????????????????????????????????? | | ??????????????????""??????????????????????????? | | ?????????????????? ?????????????????????????? | | ????????????????? ""??????????????????????????? | | ????????????????? "???????????????????????????? | | ????????????????" ????????????????????????????? | | ???????????????? ????????????????????????????? | | ??????????????? ?????????????????????????????? | | ??????????????? ??????????????????????????????? | | ???????????????#??????????????????????????????? | | ??????######## #??????????????????????????????? | | ??????# ?? ? #??????????????????????????????? | | ??????# #######??????????????????????????????? | | ??????# #????????????????????????????????????? | | ??????# #????????????????????????????????????? | | ??????# #???????################ ???? | | ??????# ####????# ? !%==% #?????? | | ?????## ##???# ############### #?????? | | ????## #???# ############???????????????? | | ????# ##### @k #???????????????? | | ???# k ########## #???????????????? | | ???# #????????#?######??????????? | | ???## ## ########????????# #??????????? | | ????###?### #???????????????###### #??????????? | | ??????????# #????????????????????# #??????????? | | ??????????# #????????????????????# #??????????? | | ??????????# #????????????????????# #??????????? | | ??????????# ????????????????????# #??????????? | | ??????????###????????????????????# #??????????? | | ?????##########??????????????????# #??????????? | | ????? #??????????????????# #??????????? | | ????# """ """ #??????????????????# #??????????? | | ????# """ """ #??????????????????# #??????????? | | ????# """ """ #??????????????????# #??????????? | | ????# """ """ #??????????????????#?#??????????? | | ????# #??????????????????# #??????????? | | ????# """ #????????????????### #??????????? | | ????# """ #?????????######## ##?????????? | | ????# """ #########?# ##????????? | | ????# """ #?# #????????? | | ????# ####### #?# #### #????????? | | ????###### ###?????# #?# #??## ##????????? | | ?????????# ######### ### #???#######?????????? | | ?????????# #???????????????????? | +----------------------------------------------------+ Best States ------------- Heat Dissipation 25 Energy Generation 10 Energy Capacity 250 Matter Stores 300 Matter Capacity 300 Sight Range 16 Robot Scan Range 20 Terrain Scan Range 16 Terrain Scan Density 10 Evasion (%) 50 Recoil Reduction 2 Item Schematics ----------------- None Robot Schematics ------------------ None Fabricated ------------ Nothing Alien Tech Used ----------------- None Achievements -------------- None Challenges ------------ None Game ------ Seed LargeSpreadRefractor Manual? 0 Play Time 00:12:12 Cumulative 299.2 hours Start 2024.04.05 @ 13:40:52 End 2024.04.05 @ 13:49:50 Sessions 1 Manual Loads 0 Difficulty Rogue Special Mode None Game No. 54 Rogue 10 Adventurer 43 Explorer 1 Win Type - Total 17 Types 6/0/5/4/1/0/1/0/0 Lore% 68 Gallery% 77 Achievement% 73 Wizard Run 0 Options --------- Layout 1 ASCII 0 Keyboard 0 Movement Numpad Keybinds 0 Fullscreen 1 Font 24/Smallcaps Map View 50x35 Zoom Use 0% Tactical HUD 1 Map Filters NONE Filters NONE Steam 1 RUN: 8dbe14d4-5d41-4e7a-95e4-3471a6465c75